bitfinex/quotes_BTCUSD_20240715
["timestamp","ask_amount","ask_price","bid_price","bid_amount"]
[1721003092338,2.79726559,60963.0,60962.0,0.29663744]
[1721003092539,2.60426559,60963.0,60962.0,0.29663744]
[1721003092738,2.61626559,60963.0,60962.0,0.29763744]
[1721003093002,4.73426559,60963.0,60962.0,0.29763744]
[1721003093454,4.72226559,60963.0,60962.0,0.29663744]
[1721003093802,4.55202819,60963.0,60962.0,0.29663744]
[1721003094220,4.54402819,60963.0,60962.0,0.29663744]
[1721003094427,4.78455123,60963.0,60962.0,0.29663744]
[1721003094623,4.55666479,60963.0,60962.0,0.36203744]
[1721003094820,4.55666479,60963.0,60962.0,0.36103744]
[1721003095005,4.35666479,60963.0,60962.0,0.36103744]
[1721003095204,4.36866479,60963.0,60962.0,0.36203744]
[1721003095429,4.37666479,60963.0,60962.0,0.36203744]
[1721003097592,4.3776405,60963.0,60962.0,0.36203744]
[1721003098371,4.1806405,60963.0,60962.0,0.36203744]
[1721003098781,4.1516405,60963.0,60962.0,0.36203744]
[1721003098998,3.5596405,60963.0,60962.0,0.36203744]
[1721003099340,3.0345735,60963.0,60962.0,0.36203744]
[1721003099538,3.0165735,60963.0,60962.0,0.36203744]
[1721003100120,3.3446405,60963.0,60962.0,0.36203744]
[1721003100722,3.3443532,60963.0,60962.0,0.36203744]
[1721003101343,2.88442298,60963.0,60962.0,0.36203744]
[1721003101764,2.78942298,60963.0,60962.0,0.36203744]
[1721003102269,3.11748998,60963.0,60962.0,0.36203744]
[1721003102470,2.78942298,60963.0,60962.0,0.36203744]
[1721003102988,2.78942298,60963.0,60962.0,0.29855044]
[1721003102989,3.31748998,60963.0,60962.0,0.29855044]
[1721003103201,3.42826811,60963.0,60962.0,0.29855044]
[1721003103432,3.42681289,60963.0,60962.0,0.29855044]
[1721003103626,3.22681289,60963.0,60962.0,0.29855044]
[1721003104053,3.42681289,60963.0,60962.0,0.29876424]
[1721003104373,3.22681289,60963.0,60962.0,0.29876424]
[1721003104786,3.11103476,60963.0,60962.0,0.29876424]
[1721003105643,2.35396776,60963.0,60962.0,0.29876424]
[1721003105815,2.13296776,60963.0,60962.0,0.29876424]
[1721003106223,2.11896776,60963.0,60962.0,0.29876424]
[1721003106425,0.17680513,60963.0,60962.0,0.44086424]
[1721003106629,0.51396147,60963.0,60962.0,0.44086424]
[1721003107405,0.50596147,60963.0,60962.0,0.44086424]
[1721003107859,0.50596147,60963.0,60962.0,0.43986424]
[1721003107860,0.48696147,60963.0,60962.0,0.43986424]
[1721003108278,0.49696147,60963.0,60962.0,0.44086424]
[1721003108825,0.49696147,60963.0,60962.0,0.43986424]
[1721003109081,0.48196147,60963.0,60962.0,0.43986424]
[1721003109207,0.48296147,60963.0,60962.0,0.44286424]
[1721003109654,0.4079353,60963.0,60962.0,0.44286424]
[1721003109863,0.48084762,60963.0,60962.0,0.44286424]
[1721003110698,0.48084762,60963.0,60962.0,0.43986424]
[1721003111126,0.48084762,60963.0,60962.0,0.44386424]
[1721003112132,0.62703811,60963.0,60962.0,0.43986424]
[1721003112515,0.62803811,60963.0,60962.0,0.44586424]
[1721003112718,0.70588062,60963.0,60962.0,0.44586424]
[1721003112943,0.9010353,60963.0,60962.0,0.44386424]
[1721003113119,0.97363584,60963.0,60962.0,0.44386424]
[1721003113320,0.9010353,60963.0,60962.0,0.44386424]
[1721003113519,4.68701683,60963.0,60962.0,0.30176424]
[1721003113719,4.48601683,60963.0,60962.0,0.29776424]
[1721003113920,4.48600564,60963.0,60962.0,0.29776424]
[1721003114184,4.32153948,60963.0,60962.0,0.30176424]
[1721003114694,4.32153948,60963.0,60962.0,0.29776424]
[1721003114894,4.32153948,60963.0,60962.0,0.29876424]
[1721003114895,4.32753948,60963.0,60962.0,0.29876424]
[1721003115030,4.32953948,60963.0,60962.0,0.29876424]
[1721003115894,4.32922219,60963.0,60962.0,0.29876424]
[1721003116079,4.27428784,60963.0,60962.0,0.29876424]
[1721003116275,4.32922271,60963.0,60962.0,0.29876424]
[1721003116887,1.92015571,60963.0,60962.0,0.29876424]
[1721003117100,1.92015571,60963.0,60962.0,0.43896424]
[1721003117101,1.20408871,60963.0,60962.0,0.43896424]
[1721003117347,1.12308871,60963.0,60962.0,0.43896424]
[1721003117925,1.68308871,60963.0,60962.0,0.43896424]
[1721003118296,1.12308871,60963.0,60962.0,0.43896424]
[1721003118971,1.18308871,60963.0,60962.0,0.43896424]
[1721003119098,1.68308871,60963.0,60962.0,0.43896424]
[1721003119320,1.18322284,60963.0,60962.0,0.43896424]
[1721003120100,0.86421261,60963.0,60962.0,0.43896424]
[1721003120304,1.12322284,60963.0,60962.0,0.43896424]
[1721003120710,0.91615584,60963.0,60962.0,0.43896424]
[1721003120912,0.91815584,60963.0,60962.0,0.43896424]
[1721003121582,0.75212284,60963.0,60962.0,0.43896424]
[1721003121897,0.72836927,60963.0,60962.0,0.43896424]
[1721003122251,0.74554646,60963.0,60962.0,0.43896424]
[1721003122679,0.7472642,60963.0,60962.0,0.43896424]
[1721003123096,0.46408639,60963.0,60962.0,0.43896424]
[1721003125143,0.46408639,60963.0,60962.0,0.43875044]
[1721003125857,0.46459746,60963.0,60962.0,0.43875044]
[1721003126077,0.43043495,60963.0,60962.0,0.43875044]
[1721003127058,0.31050782,60963.0,60962.0,0.43875044]
[1721003127290,0.17529241,60963.0,60962.0,0.43875044]
[1721003127487,0.05332864,60963.0,60962.0,0.43875044]
[1721003127695,0.02363965,60963.0,60962.0,0.43775044]
[1721003127867,0.09683205,60963.0,60962.0,0.43775044]
[1721003128078,0.09483205,60963.0,60962.0,0.44075044]
[1721003128282,0.09483205,60963.0,60962.0,0.43775044]
[1721003128731,0.09583205,60963.0,60962.0,0.93785944]
[1721003128948,0.00832,60966.0,60965.0,0.328057]
[1721003129135,0.08151032,60966.0,60965.0,1.134585]
[1721003129250,0.07478608,60966.0,60965.0,1.134585]
[1721003129650,0.07478608,60966.0,60965.0,1.133585]
[1721003130137,0.0260065,60966.0,60965.0,1.133585]
[1721003130742,0.0270065,60966.0,60965.0,0.809528]
[1721003130952,0.0270065,60966.0,60965.0,1.137585]
[1721003131170,0.0260065,60966.0,60965.0,1.19942249]
[1721003131301,0.0260065,60966.0,60965.0,1.52747949]
[1721003131924,0.05174597,60966.0,60965.0,1.54147949]
[1721003132324,0.05077996,60969.0,60968.0,0.49206]
[1721003132524,0.06514415,60969.0,60968.0,0.99114]
[1721003132674,0.06514415,60969.0,60968.0,1.13704]
[1721003133076,0.01636419,60969.0,60968.0,1.13704]
[1721003133860,0.01636419,60969.0,60968.0,1.13604]
[1721003134069,0.01636419,60969.0,60968.0,0.808]
[1721003134403,0.01736419,60969.0,60968.0,0.89911435]
[1721003134664,0.01736419,60969.0,60968.0,0.91311435]
[1721003135304,0.003,60969.0,60968.0,1.24115435]
[1721003135509,0.01745934,60969.0,60968.0,1.24115435]
[1721003137155,0.003,60969.0,60968.0,1.24115435]
[1721003143325,0.003,60969.0,60968.0,1.56919435]
[1721003146278,0.003,60969.0,60968.0,1.24115435]
[1721003146524,0.003,60969.0,60968.0,0.66498]
[1721003147234,0.01756002,60969.0,60968.0,0.66498]
[1721003147465,0.01756002,60969.0,60968.0,0.829]
[1721003148203,0.01759955,60969.0,60968.0,0.829]
[1721003148423,0.003,60969.0,60968.0,0.829]
[1721003149199,0.003,60969.0,60968.0,0.66498]
[1721003149457,0.003,60969.0,60968.0,0.91411435]
[1721003149458,0.01742481,60969.0,60968.0,0.91411435]
[1721003150135,0.01742481,60969.0,60968.0,0.75009435]
[1721003150357,0.003,60969.0,60968.0,0.75009435]
[1721003151073,0.01735622,60969.0,60968.0,0.75009435]
[1721003151318,0.003,60969.0,60968.0,0.75009435]
[1721003151768,0.01720319,60969.0,60968.0,0.75009435]
[1721003152229,0.01720316,60969.0,60968.0,0.75009435]
[1721003155524,0.01729983,60969.0,60968.0,0.75009435]
[1721003155762,0.01729983,60969.0,60968.0,0.56498]
[1721003155763,0.33631006,60969.0,60968.0,0.56498]
[1721003156016,0.01729983,60969.0,60968.0,0.56498]
[1721003156249,0.01729983,60969.0,60968.0,1.81765439]
[1721003156531,0.01729983,60969.0,60968.0,2.14569439]
[1721003156532,0.003,60969.0,60968.0,2.14569439]
[1721003156786,0.003,60969.0,60968.0,2.11277439]
[1721003157267,0.002,60969.0,60968.0,2.10677439]
[1721003157476,0.002,60969.0,60968.0,2.14669439]
[1721003157705,0.003,60969.0,60968.0,2.14669439]
[1721003158026,0.003,60969.0,60968.0,2.13269439]
[1721003158913,0.002,60969.0,60968.0,2.13969439]
[1721003159144,0.003,60969.0,60968.0,2.13969439]
[1721003159370,0.003,60969.0,60968.0,2.15369439]
[1721003159594,0.002,60969.0,60968.0,2.13969439]
[1721003160064,0.002,60969.0,60968.0,2.15369439]
[1721003160560,0.002,60969.0,60968.0,2.13969439]
[1721003160786,0.002,60969.0,60968.0,2.15369439]
[1721003161031,0.002,60969.0,60968.0,2.13969439]
[1721003161515,0.002,60969.0,60968.0,2.58173439]
[1721003162677,0.002,60969.0,60968.0,2.56773439]
[1721003162916,0.003,60969.0,60968.0,2.59573439]
[1721003163431,0.002,60969.0,60968.0,2.58173439]
[1721003163918,0.003,60969.0,60968.0,2.59573439]
[1721003164159,0.003,60969.0,60968.0,2.56773439]
[1721003164627,0.003,60969.0,60968.0,2.58173439]
[1721003164888,0.003,60969.0,60968.0,2.56681749]
[1721003165102,0.003,60969.0,60968.0,1.92473749]
[1721003165918,0.003,60969.0,60968.0,1.91073749]
[1721003165919,0.002,60969.0,60968.0,1.91073749]
[1721003166127,0.003,60969.0,60968.0,1.92473749]
[1721003166348,0.003,60969.0,60968.0,1.92565049]
[1721003166555,0.00283,60969.0,60968.0,1.91165049]
[1721003166802,0.00283,60969.0,60968.0,1.417773]
[1721003167033,0.00383,60969.0,60968.0,0.837913]
[1721003167804,0.00383,60969.0,60968.0,0.823913]
[1721003168205,0.00383,60969.0,60968.0,0.937913]
[1721003168364,0.00383,60969.0,60968.0,0.823913]
[1721003168770,0.00283,60969.0,60968.0,0.823913]
[1721003169193,0.00383,60969.0,60968.0,0.837913]
[1721003169432,0.01620788,60969.0,60968.0,0.673893]
[1721003169628,0.01720788,60969.0,60968.0,0.659893]
[1721003170028,0.01720788,60969.0,60968.0,0.837913]
[1721003170029,0.01820788,60969.0,60968.0,0.837913]
[1721003170227,0.01662095,60969.0,60968.0,0.837913]
[1721003171111,0.01662095,60969.0,60968.0,1.165953]
[1721003171316,0.00383,60969.0,60968.0,1.165953]
[1721003174039,0.00383,60969.0,60968.0,0.837913]
[1721003174256,0.01667956,60969.0,60968.0,0.837913]
[1721003176459,0.01667956,60969.0,60968.0,0.756213]
[1721003176666,0.0170297,60969.0,60968.0,0.692013]
[1721003177096,0.0190297,60969.0,60968.0,0.692013]
[1721003177949,0.0190297,60969.0,60968.0,1.020053]
[1721003178185,0.0190297,60969.0,60968.0,1.348093]
[1721003178395,0.0190297,60969.0,60968.0,1.492593]
[1721003178396,0.0170297,60969.0,60968.0,1.492593]
[1721003179949,0.01774194,60969.0,60968.0,1.492593]
[1721003180385,0.00383,60969.0,60968.0,1.492593]
[1721003180590,0.01812895,60969.0,60968.0,1.492593]
[1721003183193,0.01785244,60969.0,60968.0,1.492593]
[1721003183414,0.01785244,60969.0,60968.0,1.88738739]
[1721003183620,0.00383,60969.0,60968.0,1.88738739]
[1721003184902,0.00383,60969.0,60968.0,1.88647049]
[1721003186433,0.00383,60969.0,60968.0,1.492593]
[1721003186643,0.00383,60969.0,60968.0,1.55843049]
[1721003189223,0.01730342,60969.0,60968.0,1.55843049]
[1721003189631,0.0173039,60969.0,60968.0,1.55843049]
[1721003191919,0.0173039,60969.0,60968.0,1.88647049]
[1721003192153,0.0173039,60969.0,60968.0,1.55934739]
[1721003192850,0.0173039,60969.0,60968.0,1.88738739]
[1721003192851,0.01738053,60969.0,60968.0,1.88738739]
[1721003193498,0.00383,60969.0,60968.0,1.88738739]
[1721003197408,0.002,60975.0,60974.0,0.82002]
[1721003197616,0.00832,60976.0,60975.0,0.164001]
[1721003197825,0.02151897,60976.0,60975.0,0.663041]
[1721003198754,0.02151897,60976.0,60975.0,1.319047]
[1721003198995,0.02151897,60976.0,60975.0,1.3189639]
[1721003199207,0.02151897,60976.0,60975.0,1.318047]
[1721003199413,0.02151696,60976.0,60975.0,1.318047]
[1721003199884,0.02151741,60976.0,60975.0,1.318047]
[1721003200106,0.02151741,60976.0,60975.0,1.331047]
[1721003200964,0.02151741,60976.0,60975.0,1.72488749]
[1721003201618,0.02251741,60976.0,60975.0,1.81938749]
[1721003201827,0.02251741,60976.0,60975.0,1.82030439]
[1721003202035,0.02251741,60976.0,60975.0,1.81938749]
[1721003202271,0.02270134,60976.0,60975.0,1.81938749]
[1721003202528,0.02270011,60976.0,60975.0,1.81938749]
[1721003204119,0.00932,60976.0,60975.0,1.81938749]
[1721003204567,0.02271755,60976.0,60975.0,1.81938749]
[1721003205892,0.02271755,60976.0,60975.0,1.425547]
[1721003206740,0.02271755,60976.0,60975.0,1.345047]
[1721003207380,0.22180065,60976.0,60975.0,0.52604]
[1721003207626,0.02271755,60976.0,60975.0,0.53586987]
[1721003208039,0.22380065,60976.0,60975.0,0.53586987]
[1721003208268,0.09792509,60976.0,60975.0,0.53586987]
[1721003208468,0.09592509,60976.0,60975.0,0.53586987]
[1721003209161,0.08452754,60976.0,60975.0,0.53586987]
[1721003209348,0.09539897,60976.0,60975.0,0.53586987]
[1721003209774,0.09539738,60976.0,60975.0,0.53586987]
[1721003210002,0.09739738,60976.0,60975.0,0.53586987]
[1721003212172,0.09726786,60976.0,60975.0,0.53586987]
[1721003212393,0.00932,60976.0,60975.0,0.62896987]
[1721003212595,0.09527992,60976.0,60975.0,0.62896987]
[1721003212817,0.09727992,60976.0,60975.0,0.62896987]
[1721003213229,0.09527992,60976.0,60975.0,0.62896987]
[1721003213652,0.09727992,60976.0,60975.0,0.62896987]
[1721003213855,0.29636302,60976.0,60975.0,0.62896987]
[1721003214077,0.09527992,60976.0,60975.0,0.62896987]
[1721003214278,0.09727992,60976.0,60975.0,0.62896987]
[1721003214490,0.09527992,60976.0,60975.0,0.62896987]
[1721003215829,0.02206823,60976.0,60975.0,0.62896987]
[1721003216054,0.09527594,60976.0,60975.0,0.62896987]
[1721003216264,0.09527594,60976.0,60975.0,0.79297087]
[1721003217315,0.02206823,60976.0,60975.0,0.79297087]
[1721003217730,0.02206823,60976.0,60975.0,1.12097387]
[1721003218207,0.07087477,60976.0,60975.0,1.58457687]
[1721003218421,0.02206823,60976.0,60975.0,1.58457687]
[1721003219023,0.07141349,60976.0,60975.0,1.58457687]
[1721003219486,0.07148836,60976.0,60975.0,1.58457687]
[1721003220969,0.02268073,60976.0,60975.0,1.58457687]
[1721003221422,0.02288066,60976.0,60975.0,1.58457687]
[1721003221866,0.02288085,60976.0,60975.0,1.58457687]
[1721003222296,0.02288085,60976.0,60975.0,1.97933426]
[1721003222533,0.02288085,60976.0,60975.0,1.97841736]
[1721003226188,0.02288085,60976.0,60975.0,1.97933426]
[1721003227907,0.00932,60976.0,60975.0,1.97933426]
[1721003228340,0.02332829,60976.0,60975.0,1.97933426]
[1721003228989,0.02332829,60976.0,60975.0,1.97841736]
[1721003230117,0.02332829,60976.0,60975.0,0.53586987]
[1721003230118,0.09657754,60976.0,60975.0,0.53586987]
[1721003230333,0.12299396,60976.0,60975.0,0.62896987]
[1721003230536,0.02532829,60976.0,60975.0,0.79297087]
[1721003230743,0.02532829,60976.0,60975.0,0.79388387]
[1721003231203,0.02521838,60976.0,60975.0,0.79388387]
[1721003231411,0.12287633,60976.0,60975.0,0.79388387]
[1721003231620,0.12287072,60976.0,60975.0,0.79388387]
[1721003232029,0.12087072,60976.0,60975.0,0.79388387]
[1721003232246,0.02321095,60976.0,60975.0,1.59058987]
[1721003232449,0.09645885,60976.0,60975.0,1.59058987]
[1721003232655,0.02321095,60976.0,60975.0,1.59058987]
[1721003233927,0.00932,60976.0,60975.0,1.59058987]
[1721003234129,0.02311863,60976.0,60975.0,1.59058987]
[1721003234800,0.16482497,60992.0,60983.0,0.061]
[1721003235047,0.16482497,61003.0,61002.0,0.327858]
[1721003235298,0.14658036,61006.0,61005.0,1.21328049]
[1721003235517,0.14658036,61006.0,61005.0,1.83516049]
[1721003235736,0.0057609,61021.0,61020.0,0.16388]
[1721003235953,0.0057609,61021.0,61020.0,1.41031659]
[1721003236188,0.0057609,61021.0,61020.0,0.95627849]
[1721003236434,0.0835609,61021.0,61020.0,0.97927849]
[1721003236644,0.2270715,61021.0,61020.0,0.3988]
[1721003236904,0.25760412,61021.0,61020.0,0.3988]
[1721003237105,0.25760412,61021.0,61002.0,0.08511435]
[1721003237106,0.03416251,61010.0,61002.0,0.08511435]
[1721003237405,0.03416251,61008.0,61001.0,0.1]
[1721003237610,0.00345268,61007.0,61003.0,0.41295435]
[1721003237822,0.0487104,61014.0,61004.0,0.10327806]
[1721003238044,0.13158331,61017.0,61011.0,0.08511435]
[1721003238045,0.03416251,61017.0,61011.0,0.08511435]
[1721003238461,0.03416251,61017.0,61012.0,0.3278]
[1721003238910,0.03416251,61017.0,61013.0,0.00306353]
[1721003239144,0.1204713,61021.0,61014.0,0.655582]
[1721003239360,0.0057609,61021.0,61020.0,0.24899435]
[1721003239571,0.0057609,61021.0,61020.0,0.67675435]
[1721003239809,0.0057609,61021.0,61020.0,1.33227635]
[1721003239998,0.0057609,61021.0,61020.0,0.42776]
[1721003240646,0.0057609,61021.0,61020.0,0.59164]
[1721003240889,0.0057609,61021.0,61020.0,1.247162]
[1721003241088,0.0057609,61021.0,61020.0,1.261162]
[1721003241302,0.0057609,61021.0,61020.0,1.64076049]
[1721003241551,0.0057609,61021.0,61020.0,2.18621839]
[1721003241772,0.0057609,61021.0,61020.0,2.28641839]
[1721003242422,0.0057609,61021.0,61020.0,2.48641839]
[1721003242844,0.0057609,61021.0,61020.0,2.47941839]
[1721003243065,0.0057609,61021.0,61020.0,2.48341839]
[1721003243287,0.0057609,61021.0,61020.0,2.49741839]
[1721003243492,0.0057609,61021.0,61020.0,2.48341839]
[1721003243746,0.0057609,61021.0,61020.0,2.49741839]
[1721003243956,0.0057609,61021.0,61020.0,2.28341839]
[1721003244385,0.0057609,61021.0,61020.0,2.48341839]
[1721003244805,0.0057609,61021.0,61020.0,2.49741839]
[1721003247214,0.0057609,61021.0,61020.0,2.29741839]
[1721003247424,0.0057609,61021.0,61020.0,2.49741839]
[1721003248687,0.0205661,61027.0,61026.0,1.67441439]
[1721003248865,0.0205661,61027.0,61026.0,2.55448097]
[1721003249109,0.0205661,61027.0,61026.0,2.63218097]
[1721003249746,0.0205661,61027.0,61026.0,2.73953847]
[1721003249957,0.0077041,61029.0,61028.0,1.87436539]
[1721003250170,0.68290655,61071.0,61028.0,1.87436539]
[1721003250171,0.0637,61059.0,61036.0,0.49442939]
[1721003250393,0.0637,61059.0,61048.0,0.65817039]
[1721003250600,0.1262586,61069.0,61048.0,2.01428239]
[1721003250601,0.0637,61066.0,61048.0,2.01428239]
[1721003250828,0.0637,61066.0,61048.0,2.05663989]
[1721003251034,0.0637,61066.0,61048.0,2.07963989]
[1721003251864,0.0637,61066.0,61048.0,2.09363989]
[1721003252309,0.0637,61066.0,61048.0,2.05128239]
[1721003253622,0.0637,61066.0,61048.0,2.06528239]
[1721003254288,0.0827,61069.0,61048.0,2.73199339]
[1721003254500,0.002,61069.0,61048.0,2.73199339]
[1721003254722,0.002,61069.0,61055.0,1.31325939]
[1721003254962,0.002,61069.0,61055.0,1.76382939]
[1721003255374,0.02570039,61059.0,61055.0,1.79670939]
[1721003256723,0.02570039,61059.0,61055.0,1.43625639]
[1721003256925,0.02570039,61059.0,61055.0,1.12268339]
[1721003257155,0.02570039,61059.0,61055.0,1.20779774]
[1721003257595,0.02570039,61059.0,61055.0,1.20688084]
[1721003257837,0.02570039,61059.0,61055.0,0.591356]
[1721003258057,0.0622,61056.0,61055.0,0.44157]
[1721003258940,0.0001,61056.0,61055.0,0.591356]
[1721003259420,0.0001,61056.0,61055.0,0.918929]
[1721003259647,0.0001,61056.0,61055.0,0.932929]
[1721003259900,0.0001,61056.0,61055.0,0.918929]
[1721003260376,0.0001,61056.0,61055.0,0.946929]
[1721003260597,0.0001,61056.0,61055.0,0.605356]
[1721003261017,0.0001,61056.0,61055.0,0.44157]
[1721003261435,0.0001,61056.0,61055.0,0.45557]
[1721003261674,0.0001,61056.0,61055.0,0.619356]
[1721003261879,0.0001,61056.0,61055.0,0.605356]
[1721003262086,0.0001,61056.0,61055.0,0.619356]
[1721003262510,0.35327274,61056.0,61055.0,0.35557]
[1721003262751,0.95965674,61056.0,61055.0,0.35557]
[1721003262954,0.0603,61045.0,61037.0,0.00397653]
[1721003263174,0.2593831,61045.0,61037.0,0.00397653]
[1721003263435,0.2809831,61044.0,61038.0,0.32765]
[1721003263612,0.03416251,61041.0,61038.0,0.32765]
[1721003264303,0.31901023,61039.0,61038.0,0.32765]
[1721003264752,0.31901023,61039.0,61038.0,0.33465]
[1721003264956,0.35317274,61039.0,61038.0,0.32765]
[1721003265173,0.71180901,61039.0,61038.0,0.32765]
[1721003265421,1.09946801,61039.0,61038.0,0.35065]
[1721003265652,0.41827274,61031.0,61021.0,0.7859]
[1721003265872,0.41827274,61031.0,61017.0,0.163888]
[1721003265873,0.23324561,61030.0,61017.0,0.163888]
[1721003266102,0.23324561,61030.0,61020.0,0.32774]
[1721003266563,0.23324561,61030.0,61026.0,0.08511435]
[1721003266786,0.1990831,61028.0,61027.0,0.32772]
[1721003267197,0.03416251,61030.0,61027.0,0.32772]
[1721003267611,0.03516251,61030.0,61027.0,0.32772]
[1721003268065,0.31901023,61028.0,61027.0,0.32772]
[1721003268484,0.31901023,61028.0,61027.0,0.33272]
[1721003268688,0.03416251,61030.0,61027.0,0.33272]
[1721003268689,0.23324561,61030.0,61027.0,0.33272]
[1721003268891,0.31901023,61028.0,61027.0,0.33272]
[1721003269381,0.03416251,61030.0,61027.0,0.33272]
[1721003269603,0.03416251,61030.0,61027.0,0.32772]
[1721003269604,0.1990831,61028.0,61027.0,0.32772]
[1721003269829,0.304029,61039.0,61027.0,0.32772]
[1721003269830,0.0653,61038.0,61028.0,0.327718]
[1721003270058,0.0653,61038.0,61037.0,0.08411435]
[1721003270059,0.09946251,61038.0,61037.0,0.08411435]
[1721003270279,0.09946251,61038.0,61037.0,0.41178435]
[1721003270905,0.09946251,61038.0,61037.0,0.41078435]
[1721003271332,0.10246251,61038.0,61037.0,0.41078435]
[1721003271543,0.09946251,61038.0,61037.0,0.41078435]
[1721003271756,0.10046251,61038.0,61037.0,0.41078435]
[1721003273449,0.0663,61038.0,61037.0,0.41078435]
[1721003273672,0.23324561,61042.0,61037.0,0.41078435]
[1721003273881,0.001,61038.0,61037.0,0.41278435]
[1721003274507,0.23324561,61042.0,61037.0,0.41178435]
[1721003274715,0.001,61038.0,61037.0,0.57561935]
[1721003274927,0.001,61038.0,61037.0,0.90328935]
[1721003275719,0.001,61038.0,61037.0,1.00328935]
[1721003276151,0.001,61042.0,61040.0,0.163826]
[1721003276374,0.09916251,61049.0,61041.0,0.33071353]
[1721003276851,0.29824561,61049.0,61041.0,0.32971353]
[1721003277323,0.09916251,61049.0,61041.0,0.32971353]
[1721003277615,0.09916251,61049.0,61041.0,0.32765]
[1721003277830,0.29824561,61049.0,61041.0,0.32765]
[1721003278034,0.09916251,61049.0,61041.0,0.32765]
[1721003278243,0.29824561,61049.0,61041.0,0.32765]
[1721003278505,0.29824561,61049.0,61041.0,0.32665]
[1721003278747,0.1990831,61045.0,61041.0,0.32665]
[1721003278975,0.31901023,61042.0,61041.0,0.32665]
[1721003279224,0.35317274,61042.0,61041.0,0.32665]
[1721003279564,0.23324561,61042.0,61041.0,0.32665]
[1721003279801,0.1990831,61045.0,61041.0,0.32665]
[1721003280023,0.03416251,61043.0,61041.0,0.32765]
[1721003280485,0.23324561,61047.0,61041.0,0.32765]
[1721003280715,0.23324561,61047.0,61041.0,0.32665]
[1721003280716,0.001,61042.0,61041.0,0.32665]
[1721003280948,0.001,61042.0,61041.0,0.33465]
[1721003281427,0.03416251,61047.0,61041.0,0.32665]
[1721003281910,0.03416251,61047.0,61041.0,0.41476435]
[1721003282125,0.02571067,61046.0,61041.0,0.41476435]
[1721003282370,0.22479377,61046.0,61041.0,0.32965]
[1721003282594,0.31901023,61042.0,61041.0,0.32965]
[1721003282844,0.35317274,61042.0,61041.0,0.33065]
[1721003283060,0.1990831,61045.0,61041.0,0.32765]
[1721003283356,0.1990831,61045.0,61041.0,0.32665]
[1721003283596,0.23424561,61042.0,61041.0,0.33865]
[1721003283848,0.35417274,61042.0,61041.0,0.33565]
[1721003284091,0.35317274,61042.0,61041.0,0.32965]
[1721003284336,0.23424561,61042.0,61041.0,0.32965]
[1721003284582,0.23424561,61042.0,61041.0,0.33265]
[1721003284805,0.03516251,61042.0,61041.0,0.33265]
[1721003285035,0.35417274,61042.0,61041.0,0.33065]
[1721003285273,0.23424561,61042.0,61041.0,0.33065]
[1721003286000,0.03516251,61042.0,61041.0,0.33065]
[1721003286232,0.03516251,61042.0,61041.0,0.32665]
[1721003286233,0.1990831,61042.0,61041.0,0.32665]
[1721003286479,0.32001023,61042.0,61041.0,0.33865]
[1721003286715,0.35517274,61042.0,61041.0,0.33865]
[1721003286939,0.35417274,61042.0,61041.0,0.32665]
[1721003287224,0.35517274,61042.0,61041.0,0.32965]
[1721003287467,0.35417274,61042.0,61041.0,0.33565]
[1721003287711,0.43457274,61042.0,61041.0,0.33065]
[1721003288162,0.43557274,61042.0,61041.0,0.34065]
[1721003288618,0.46255162,61042.0,61041.0,0.34065]
[1721003289079,0.46255184,61042.0,61041.0,0.34065]
[1721003289309,0.38115184,61042.0,61041.0,0.33665]
[1721003289536,0.38015184,61042.0,61041.0,0.32665]
[1721003289783,0.38215184,61042.0,61041.0,0.33865]
[1721003290004,0.38215184,61042.0,61041.0,0.33565]
[1721003290235,0.38215184,61042.0,61041.0,0.33065]
[1721003290705,0.38315184,61042.0,61041.0,0.34065]
[1721003290947,0.0279791,61042.0,61041.0,0.33665]
[1721003291124,0.04413735,61042.0,61041.0,0.32665]
[1721003291372,0.04513735,61042.0,61041.0,0.33965]
[1721003291584,0.36514758,61042.0,61041.0,0.33965]
[1721003291785,0.39931009,61042.0,61041.0,0.33965]
[1721003292329,0.39934526,61042.0,61041.0,0.33965]
[1721003292531,0.39834526,61042.0,61041.0,0.33565]
[1721003292939,0.39934526,61042.0,61041.0,0.33865]
[1721003293138,0.39834526,61042.0,61041.0,0.33565]
[1721003293341,0.39734526,61042.0,61041.0,0.32665]
[1721003293556,0.08033503,61042.0,61041.0,0.33965]
[1721003293755,0.39934526,61042.0,61041.0,0.33665]
[1721003294038,0.39934526,61042.0,61041.0,0.32965]
[1721003294472,0.39934526,61042.0,61041.0,0.33565]
[1721003294891,0.3979416,61042.0,61041.0,0.32665]
[1721003295295,0.3989416,61042.0,61041.0,0.337563]
[1721003295491,0.39969106,61042.0,61041.0,0.337563]
[1721003295815,0.33969106,61042.0,61041.0,0.340563]
[1721003296016,0.04651832,61042.0,61041.0,0.340563]
[1721003296216,0.04651832,61042.0,61041.0,0.337563]
[1721003296217,0.04551832,61042.0,61041.0,0.337563]
[1721003296378,0.04551832,61042.0,61041.0,0.330563]
[1721003296777,0.04551832,61042.0,61041.0,0.336563]
[1721003296982,0.04651832,61042.0,61041.0,0.339563]
[1721003297485,0.04651832,61042.0,61041.0,1.4909999]
[1721003297486,0.04551832,61042.0,61041.0,1.4909999]
[1721003297715,0.04551832,61042.0,61041.0,1.97218539]
[1721003297716,0.04651832,61042.0,61041.0,1.97218539]
[1721003297926,0.04651832,61042.0,61041.0,2.05898539]
[1721003298299,0.01998825,61042.0,61041.0,2.05898539]
[1721003298510,0.01898825,61042.0,61041.0,2.04998539]
[1721003298729,0.01898825,61042.0,61041.0,2.04906849]
[1721003299122,0.04581505,61042.0,61041.0,2.04606849]
[1721003299325,0.01898825,61042.0,61041.0,2.05406849]
[1721003299708,0.01798825,61042.0,61041.0,2.04606849]
[1721003299947,0.01898825,61042.0,61041.0,2.05706849]
[1721003300169,0.01898825,61042.0,61041.0,2.15798539]
[1721003300599,0.01898825,61042.0,61041.0,2.16798539]
[1721003300600,0.01998825,61042.0,61041.0,2.16798539]
[1721003301218,0.01898825,61042.0,61041.0,2.15798539]
[1721003302052,0.01898825,61042.0,61041.0,2.17198539]
[1721003303064,0.01898825,61042.0,61041.0,2.49963339]
[1721003303293,0.01898825,61042.0,61041.0,2.53251339]
[1721003304322,0.01898825,61042.0,61041.0,2.51851339]
[1721003304730,0.01998825,61042.0,61041.0,2.53251339]
[1721003305181,1e-08,61042.0,61041.0,2.53251339]
[1721003305392,1e-08,61042.0,61041.0,2.52151339]
[1721003305821,1e-08,61042.0,61041.0,2.53551339]
[1721003306049,1e-08,61042.0,61041.0,2.77276138]
[1721003307133,0.0171524,61047.0,61046.0,1.78334839]
[1721003307351,0.0171524,61047.0,61046.0,2.59336274]